[Event "NJSK 2021 Jeugd C"]
[Site "Almelo, Netherlands"]
[Date "2021.08.05"]
[Round "6.11"]
[White "Sazonov, Fedor"]
[Black "Ramdien, Steven"]
[Result "1/2-1/2"]
[TimeControl "90min + 30sec/move"]
[WhiteElo "1650"]
[BlackElo "1589"]

1. d4 {[%clk 01:30:59]} {[%emt 00:00:01]} Nf6 {[%clk 01:30:55]} {[%emt
00:00:06]} 2. c4 {[%clk 01:31:15]} {[%emt 00:00:13]} e6 {[%clk 01:31:20]}
{[%emt 00:00:05]} 3. Nf3 {[%clk 01:31:29]} {[%emt 00:00:16]} d5 {[%clk
01:31:32]} {[%emt 00:00:19]} 4. g3 {[%clk 01:31:28]} {[%emt 00:00:30]} g6
{[%clk 01:31:41]} {[%emt 00:00:19]} 5. Bg2 {[%clk 01:31:39]} {[%emt 00:00:20]}
Bg7 {[%clk 01:32:06]} {[%emt 00:00:05]} 6. O-O {[%clk 01:32:01]} {[%emt
00:00:08]} O-O {[%clk 01:32:15]} {[%emt 00:00:20]} 7. b3 {[%clk 01:27:05]}
{[%emt 00:05:27]} b6 {[%clk 01:31:00]} {[%emt 00:01:45]} 8. Bb2 {[%clk
01:24:13]} {[%emt 00:03:22]} Bb7 {[%clk 01:30:43]} {[%emt 00:00:47]} 9. Qc2
{[%clk 01:23:59]} {[%emt 00:00:44]} c6 {[%clk 01:27:50]} {[%emt 00:03:23]} 10.
Nbd2 {[%clk 01:23:52]} {[%emt 00:00:36]} Nbd7 {[%clk 01:27:04]} {[%emt
00:01:16]} 11. e4 {[%clk 01:23:38]} {[%emt 00:00:44]} dxe4 {[%clk 01:26:21]}
{[%emt 00:01:13]} 12. Nxe4 {[%clk 01:24:00]} {[%emt 00:00:09]} c5 {[%clk
01:26:06]} {[%emt 00:00:46]} 13. Nxf6+ {[%clk 01:15:02]} {[%emt 00:09:27]} Nxf6
{[%clk 01:26:04]} {[%emt 00:00:32]} 14. dxc5 {[%clk 01:15:05]} {[%emt
00:00:27]} bxc5 {[%clk 01:26:17]} {[%emt 00:00:16]} 15. Rad1 {[%clk 01:11:29]}
{[%emt 00:04:06]} Qb6 {[%clk 01:25:46]} {[%emt 00:00:59]} 16. Ne5 {[%clk
01:07:22]} {[%emt 00:04:39]} Bxg2 {[%clk 01:24:50]} {[%emt 00:01:27]} 17. Kxg2
{[%emt 00:00:19]} Rad8 {[%clk 01:23:40]} {[%emt 00:01:38]} 18. Nf3 {[%clk
01:04:41]} {[%emt 00:03:23]} Qc6 {[%clk 01:21:47]} {[%emt 00:02:23]} 19. Rxd8
{[%clk 01:00:01]} {[%emt 00:05:11]} Rxd8 {[%clk 01:21:22]} {[%emt 00:00:55]} 20.
Rd1 {[%clk 00:59:39]} {[%emt 00:00:49]} Rd6 {[%clk 01:12:50]} {[%emt 00:09:05]}
21. Rxd6 {[%clk 00:56:06]} {[%emt 00:04:02]} Qxd6 {[%clk 01:13:08]} {[%emt
00:00:13]} 22. Qd2 {[%clk 00:56:24]} {[%emt 00:00:12]} Ne4 {[%clk 01:11:15]}
{[%emt 00:02:22]} 23. Qxd6 {[%clk 00:55:18]} {[%emt 00:01:36]} Nxd6 {[%clk
01:11:35]} {[%emt 00:00:11]} 24. Bxg7 {[%clk 00:55:29]} {[%emt 00:00:19]} Kxg7
{[%clk 01:12:03]} {[%emt 00:00:02]} 25. Ne5 {[%clk 00:55:37]} {[%emt 00:00:21]}
Nb7 {[%clk 01:12:12]} {[%emt 00:00:22]} 26. Kf3 {[%clk 00:54:57]} {[%emt
00:01:10]} Kf6 {[%clk 01:12:04]} {[%emt 00:00:38]} 27. Nc6 {[%clk 00:54:51]}
{[%emt 00:00:36]} a5 {[%clk 01:12:11]} {[%emt 00:00:23]} 28. a3 {[%clk
00:54:00]} {[%emt 00:01:20]} e5 {[%clk 01:11:45]} {[%emt 00:00:56]} 29. b4
{[%clk 00:47:44]} {[%emt 00:06:47]} axb4 {[%clk 01:11:49]} {[%emt 00:00:26]} 30.
axb4 {[%clk 00:47:56]} {[%emt 00:00:18]} cxb4 {[%clk 01:12:05]} {[%emt
00:00:15]} 31. Nxb4 {[%clk 00:48:20]} {[%emt 00:00:05]} Nc5 {[%clk 01:12:23]}
{[%emt 00:00:11]} 32. Ke3 {[%clk 00:45:02]} {[%emt 00:03:49]} Ke6 {[%clk
01:12:03]} {[%emt 00:00:50]} 33. Nd3 {[%clk 00:43:11]} {[%emt 00:02:21]} Nxd3
{[%clk 01:11:30]} {[%emt 00:01:03]} 34. Kxd3 {[%clk 00:43:36]} {[%emt
00:00:04]} f5 {[%clk 01:11:41]} {[%emt 00:00:20]} 35. Kc3 {[%clk 00:40:34]}
{[%emt 00:03:33]} Kd6 {[%clk 01:10:45]} {[%emt 00:01:26]} 36. Kb4 {[%clk
00:37:48]} {[%emt 00:03:16]} Kc6 {[%clk 01:10:58]} {[%emt 00:00:16]} 37. c5
{[%clk 00:38:11]} {[%emt 00:00:08]} h6 {[%clk 01:11:08]} {[%emt 00:00:20]} 38.
h4 {[%clk 00:36:03]} {[%emt 00:02:38]} g5 {[%clk 01:10:13]} {[%emt 00:01:25]}
39. hxg5 {[%clk 00:28:48]} {[%emt 00:07:46]} hxg5 {[%clk 01:10:32]} {[%emt
00:00:09]} 40. f3 {[%clk 00:28:57]} {[%emt 00:00:22]} g4 {[%clk 00:48:09]}
{[%emt 00:22:52]} 41. fxg4 {[%clk 00:27:43]} {[%emt 00:01:44]} f4 {[%clk
00:48:09]} {[%emt 00:00:31]} 42. gxf4 {[%clk 00:28:01]} {[%emt 00:00:12]} exf4
{[%clk 00:48:28]} {[%emt 00:00:11]} 43. Kc4 {[%clk 00:28:25]} {[%emt 00:00:07]}
f3 {[%clk 00:48:40]} {[%emt 00:00:18]} 44. Kd3 {[%clk 00:28:49]} {[%emt
00:00:06]} Kxc5 {[%clk 00:48:44]} {[%emt 00:00:26]} 45. Ke3 {[%clk 00:29:04]}
{[%emt 00:00:15]} Kd5 {[%clk 00:49:01]} {[%emt 00:00:13]} 46. Kxf3 {[%clk
00:29:28]} {[%emt 00:00:07]} Ke5 {[%clk 00:49:24]} {[%emt 00:00:06]} 47. Ke3
{[%clk 00:29:41]} {[%emt 00:00:17]} Ke6 {[%clk 00:49:34]} {[%emt 00:00:20]} 48.
Kf3 {[%clk 00:29:03]} {[%emt 00:01:08]} Ke5 {[%clk 00:49:27]} {[%emt 00:00:37]}
49. Ke3 {[%clk 00:29:15]} {[%emt 00:00:18]} Ke6 {[%clk 00:49:51]} {[%emt
00:00:06]} 50. Ke4 {[%clk 00:29:43]} {[%emt 00:00:02]} Kf6 {[%clk 00:50:16]}
{[%emt 00:00:05]} 51. Kf4 {[%clk 00:30:12]} Kg6 {[%clk 00:50:39]} {[%emt
00:00:06]} 52. g5 {[%clk 00:30:41]} {[%emt 00:00:01]} Kg7 {[%clk 00:50:59]}
{[%emt 00:00:10]} 53. Kf5 {[%clk 00:30:37]} {[%emt 00:00:35]} Kf7 {[%clk
00:51:18]} {[%emt 00:00:11]} 54. g6+ {[%clk 00:31:05]} {[%emt 00:00:01]} Kg7
{[%clk 00:51:38]} {[%emt 00:00:10]} 55. Kg5 {[%clk 00:31:31]} {[%emt 00:00:05]}
Kg8 {[%clk 00:51:59]} {[%emt 00:00:09]} 56. Kh5 {[%clk 00:31:12]} {[%emt
00:00:49]} Kg7 {[%clk 00:52:23]} {[%emt 00:00:06]} 57. Kg5 {[%clk 00:31:23]}
{[%emt 00:00:19]} Kg8 {[%clk 00:52:47]} {[%emt 00:00:06]} 58. Kf6 {[%clk
00:31:42]} {[%emt 00:00:11]} Kf8 {[%clk 00:53:11]} {[%emt 00:00:06]} 59. Ke5
{[%clk 00:31:38]} {[%emt 00:00:35]} Kg7 {[%clk 00:53:33]} {[%emt 00:00:08]} 60.
Kf5 {[%clk 00:32:07]} {[%emt 00:00:01]} Kg8 {[%clk 00:53:52]} {[%emt 00:00:11]}
61. Kf6 {[%clk 00:32:35]} {[%emt 00:00:02]} Kf8 {[%clk 00:54:18]} {[%emt
00:00:04]} 62. g7+ {[%clk 00:33:04]} {[%emt 00:00:01]} Kg8 {[%clk 00:54:42]}
{[%emt 00:00:06]} 63. Kg6 {[%clk 00:33:29]} {[%emt 00:00:05]} 1/2-1/2

[Event "NJSK 2021 Jeugd C"]
[Site "Almelo, Netherlands"]
[Date "2021.08.05"]
[Round "6.12"]
[White "Lankheet, Hidde"]
[Black "Blom, Rens"]
[Result "0-1"]
[TimeControl "90min + 30sec/move"]
[WhiteElo "1000"]
[BlackElo "1650"]

1. e4 {[%clk 01:30:59]} d6 {[%clk 01:30:57]} {[%emt 00:00:04]} 2. f4 {[%clk
01:31:16]} {[%emt 00:00:13]} Nf6 {[%clk 01:30:22]} {[%emt 00:01:05]} 3. Nc3
{[%emt 00:00:11]} g6 {[%emt 00:00:32]} 4. Bc4 {[%clk 01:30:31]} {[%emt
00:00:32]} Bg7 {[%clk 01:30:20]} {[%emt 00:00:33]} 5. Nf3 {[%clk 01:30:47]}
{[%emt 00:00:15]} O-O {[%clk 01:30:01]} {[%emt 00:00:49]} 6. d3 {[%clk
01:31:07]} {[%emt 00:00:10]} c6 {[%clk 01:28:49]} {[%emt 00:01:42]} 7. e5
{[%clk 01:29:52]} {[%emt 00:01:45]} dxe5 {[%clk 01:26:34]} {[%emt 00:02:44]} 8.
fxe5 {[%clk 01:29:57]} {[%emt 00:00:25]} Ng4 {[%clk 01:25:29]} {[%emt
00:01:35]} 9. d4 {[%clk 01:27:45]} {[%emt 00:02:43]} c5 {[%clk 01:21:41]}
{[%emt 00:04:18]} 10. dxc5 {[%clk 01:26:00]} {[%emt 00:02:14]} Nxe5 {[%clk
01:21:23]} {[%emt 00:00:49]} 11. Nxe5 {[%clk 01:24:36]} {[%emt 00:01:55]} Bxe5
{[%clk 01:21:38]} {[%emt 00:00:14]} 12. Bh6 {[%clk 01:22:46]} {[%emt 00:02:20]}
Bg7 {[%clk 01:16:38]} {[%emt 00:05:30]} 13. Bxg7 {[%clk 01:22:16]} {[%emt
00:00:59]} Qxd1+ {[%clk 01:15:29]} {[%emt 00:01:40]} 14. Rxd1 {[%clk 01:22:32]}
{[%emt 00:00:13]} Kxg7 {[%emt 00:00:04]} 15. O-O {[%clk 01:20:52]} {[%emt
00:02:08]} Nc6 {[%clk 01:14:50]} {[%emt 00:01:38]} 16. a3 {[%clk 01:16:45]}
{[%emt 00:04:37]} e5 {[%clk 01:08:00]} {[%emt 00:07:20]} 17. Rfe1 {[%clk
01:15:05]} {[%emt 00:02:09]} f6 {[%clk 01:07:13]} {[%emt 00:01:18]} 18. Ne4
{[%clk 01:14:49]} {[%emt 00:00:47]} Bf5 {[%clk 01:00:23]} {[%emt 00:07:20]} 19.
c3 {[%clk 01:13:44]} {[%emt 00:01:35]} Bxe4 {[%clk 00:59:07]} {[%emt 00:01:46]}
20. Rxe4 {[%clk 01:13:53]} {[%emt 00:00:21]} Rad8 {[%clk 00:57:54]} {[%emt
00:01:43]} 21. Ree1 {[%clk 01:13:46]} {[%emt 00:00:36]} f5 {[%clk 00:54:52]}
{[%emt 00:03:31]} 22. b4 {[%clk 01:11:51]} {[%emt 00:02:26]} a6 {[%clk
00:48:58]} {[%emt 00:06:24]} 23. Bd5 {[%clk 01:11:30]} {[%emt 00:00:51]} Rd7
{[%clk 00:45:49]} {[%emt 00:03:39]} 24. Bxc6 {[%clk 01:10:10]} {[%emt
00:01:50]} Rxd1 {[%clk 00:46:11]} {[%emt 00:00:08]} 25. Rxd1 {[%clk 01:10:26]}
{[%emt 00:00:14]} bxc6 {[%clk 00:46:37]} {[%emt 00:00:03]} 26. Rd6 {[%clk
01:09:32]} {[%emt 00:01:25]} Rf6 {[%clk 00:45:14]} {[%emt 00:01:53]} 27. Kf2
{[%clk 01:08:17]} {[%emt 00:01:45]} Kf7 {[%clk 00:43:04]} {[%emt 00:02:41]} 28.
Rxf6+ {[%clk 01:07:47]} {[%emt 00:00:59]} Kxf6 {[%emt 00:00:05]} 29. Kf3 {[%clk
01:07:35]} {[%emt 00:00:41]} e4+ {[%clk 00:42:24]} {[%emt 00:01:35]} 30. Kf4
{[%clk 01:07:43]} {[%emt 00:00:23]} g5+ {[%clk 00:42:33]} {[%emt 00:00:21]} 31.
Ke3 {[%clk 01:07:49]} {[%emt 00:00:24]} Ke5 {[%clk 00:41:57]} {[%emt 00:01:06]}
32. c4 {[%clk 01:08:07]} {[%emt 00:00:11]} f4+ {[%clk 00:42:01]} {[%emt
00:00:26]} 33. Ke2 {[%clk 01:08:20]} {[%emt 00:00:16]} Kd4 {[%clk 00:41:43]}
{[%emt 00:00:49]} 34. b5 {[%clk 01:08:35]} {[%emt 00:00:15]} axb5 {[%clk
00:41:34]} {[%emt 00:00:39]} 35. cxb5 {[%clk 01:08:57]} {[%emt 00:00:08]} Kxc5
{[%clk 00:41:58]} {[%emt 00:00:07]} 36. bxc6 {[%clk 01:07:22]} {[%emt
00:02:05]} Kxc6 {[%emt 00:00:18]} 37. Kd2 {[%clk 01:07:51]} e3+ {[%clk
00:42:02]} {[%emt 00:00:39]} 38. Ke2 {[%clk 01:08:05]} {[%emt 00:00:16]} Kb5
{[%clk 00:42:24]} {[%emt 00:00:08]} 39. g3 {[%clk 01:08:26]} {[%emt 00:00:08]}
Ka4 {[%clk 00:42:37]} {[%emt 00:00:18]} 40. h4 {[%clk 01:08:37]} {[%emt
00:00:19]} h6 {[%clk 00:42:52]} {[%emt 00:00:15]} 41. hxg5 {[%clk 01:07:37]}
{[%emt 00:01:30]} hxg5 {[%clk 00:43:14]} {[%emt 00:00:09]} 42. gxf4 {[%clk
01:07:54]} {[%emt 00:00:13]} gxf4 {[%clk 00:43:34]} {[%emt 00:00:09]} 0-1

[Event "NJSK 2021 Jeugd C"]
[Site "Almelo, Netherlands"]
[Date "2021.08.05"]
[Round "7.1"]
[White "De Winter, Arthur"]
[Black "Arnold, Rhys"]
[Result "1-0"]
[TimeControl "90min + 30sec/move"]
[WhiteElo "2000"]
[BlackElo "1748"]

1. e4 {[%clk 01:30:57]} {[%emt 00:00:02]} c5 {[%clk 01:30:35]} {[%emt
00:00:26]} 2. Nf3 {[%clk 01:31:23]} {[%emt 00:00:04]} Nc6 {[%clk 01:30:52]}
{[%emt 00:00:13]} 3. d4 {[%clk 01:31:48]} {[%emt 00:00:05]} cxd4 {[%clk
01:31:17]} {[%emt 00:00:06]} 4. Nxd4 {[%clk 01:32:14]} {[%emt 00:00:03]} e5
{[%clk 01:31:42]} {[%emt 00:00:05]} 5. Nb5 {[%clk 01:32:41]} {[%emt 00:00:03]}
d6 {[%clk 01:32:08]} {[%emt 00:00:05]} 6. N1c3 {[%clk 01:33:07]} {[%emt
00:00:04]} a6 {[%clk 01:32:32]} {[%emt 00:00:06]} 7. Na3 {[%clk 01:33:33]}
{[%emt 00:00:04]} Be6 {[%clk 01:32:50]} {[%emt 00:00:11]} 8. Nc4 {[%clk
01:32:59]} {[%emt 00:01:04]} Rb8 {[%clk 01:32:48]} {[%emt 00:00:32]} 9. g3
{[%clk 01:28:15]} {[%emt 00:05:13]} Nf6 {[%clk 01:24:46]} {[%emt 00:08:32]} 10.
Bg5 {[%clk 01:24:39]} {[%emt 00:04:06]} Be7 {[%clk 01:20:04]} {[%emt 00:05:12]}
11. Bxf6 {[%clk 01:21:47]} {[%emt 00:03:21]} gxf6 {[%clk 01:20:26]} {[%emt
00:00:07]} 12. Ne3 {[%clk 01:19:56]} {[%emt 00:02:22]} Qd7 {[%clk 01:11:29]}
{[%emt 00:09:29]} 13. Ncd5 {[%clk 01:15:57]} {[%emt 00:04:29]} f5 {[%clk
01:11:20]} {[%emt 00:00:38]} 14. exf5 {[%clk 01:12:49]} {[%emt 00:03:39]} Bxf5
{[%clk 01:11:04]} {[%emt 00:00:45]} 15. Nxf5 {[%clk 01:11:59]} {[%emt
00:01:19]} Qxf5 {[%clk 01:11:20]} {[%emt 00:00:14]} 16. Bg2 {[%clk 01:11:33]}
{[%emt 00:00:56]} Nd4 {[%clk 01:10:50]} {[%emt 00:01:00]} 17. Ne3 {[%clk
01:10:49]} {[%emt 00:01:14]} Qg6 {[%clk 01:10:01]} {[%emt 00:01:20]} 18. O-O
{[%clk 01:07:38]} {[%emt 00:03:41]} Ne6 {[%clk 01:06:24]} {[%emt 00:04:07]} 19.
Nd5 {[%clk 00:59:10]} {[%emt 00:08:58]} h5 {[%clk 01:03:30]} {[%emt 00:03:23]}
20. c3 {[%clk 00:52:11]} {[%emt 00:07:30]} f5 {[%clk 01:00:05]} {[%emt
00:03:55]} 21. Qa4+ {[%clk 00:44:54]} {[%emt 00:07:46]} Kf7 {[%clk 00:58:15]}
{[%emt 00:02:20]} 22. Qd7 {[%clk 00:44:02]} {[%emt 00:01:22]} Rbe8 {[%clk
00:53:46]} {[%emt 00:04:58]} 23. Nxe7 {[%clk 00:43:43]} {[%emt 00:00:50]} Rxe7
{[%clk 00:54:03]} {[%emt 00:00:12]} 24. Qxd6 {[%clk 00:44:08]} {[%emt
00:00:05]} e4 {[%clk 00:53:48]} {[%emt 00:00:45]} 25. Rad1 {[%clk 00:39:18]}
{[%emt 00:05:20]} Rd8 {[%clk 00:52:22]} {[%emt 00:01:56]} 26. Qb6 {[%clk
00:36:53]} {[%emt 00:02:54]} Rxd1 {[%clk 00:52:19]} {[%emt 00:00:34]} 27. Rxd1
{[%clk 00:37:18]} {[%emt 00:00:05]} Qg4 {[%clk 00:52:20]} {[%emt 00:00:28]} 28.
Rd5 {[%clk 00:34:29]} {[%emt 00:03:19]} h4 {[%clk 00:50:59]} {[%emt 00:01:52]}
29. Qe3 {[%clk 00:29:04]} {[%emt 00:05:54]} Nc7 {[%clk 00:47:25]} {[%emt
00:04:04]} 30. Rd6 {[%clk 00:28:37]} {[%emt 00:00:57]} Re6 {[%clk 00:46:52]}
{[%emt 00:01:02]} 31. Rd7+ {[%clk 00:27:33]} {[%emt 00:01:35]} Re7 {[%clk
00:46:52]} {[%emt 00:00:30]} 32. Rxe7+ {[%clk 00:27:38]} {[%emt 00:00:25]} Kxe7
{[%clk 00:47:14]} {[%emt 00:00:08]} 33. f3 {[%clk 00:28:03]} {[%emt 00:00:05]}
Qh5 {[%clk 00:47:07]} {[%emt 00:00:37]} 34. fxe4 {[%clk 00:26:45]} {[%emt
00:01:49]} Ne6 {[%clk 00:47:19]} {[%emt 00:00:18]} 35. exf5 {[%clk 00:25:32]}
{[%emt 00:01:42]} Qxf5 {[%clk 00:47:45]} {[%emt 00:00:05]} 36. Qe4 {[%clk
00:24:06]} {[%emt 00:01:57]} Qc5+ {[%clk 00:47:57]} {[%emt 00:00:18]} 37. Kh1
{[%clk 00:23:50]} {[%emt 00:00:46]} hxg3 {[%clk 00:47:49]} {[%emt 00:00:38]} 38.
Bh3 {[%clk 00:23:48]} {[%emt 00:00:32]} g2+ {[%clk 00:48:06]} {[%emt 00:00:14]}
39. Kxg2 {[%clk 00:24:02]} {[%emt 00:00:16]} Qg5+ {[%clk 00:48:23]} {[%emt
00:00:13]} 40. Kf3 {[%clk 00:23:46]} {[%emt 00:00:45]} Qh5+ {[%clk 00:48:24]}
{[%emt 00:00:29]} 41. Bg4 {[%clk 00:23:59]} {[%emt 00:00:17]} Qf7+ {[%clk
00:48:47]} {[%emt 00:00:07]} 42. Ke2 {[%clk 00:24:22]} {[%emt 00:00:07]} Kf8
{[%clk 00:48:27]} {[%emt 00:00:49]} 43. Qxe6 {[%clk 00:24:45]} {[%emt
00:00:08]} Qf4 {[%clk 00:48:51]} {[%emt 00:00:06]} 44. Qf5+ {[%clk 00:25:11]}
{[%emt 00:00:04]} 1-0

[Event "NJSK 2021 Jeugd C"]
[Site "Almelo, Netherlands"]
[Date "2021.08.05"]
[Round "7.2"]
[White "Dekker, Thiemen"]
[Black "Kumar, Prajit Sai"]
[Result "0-1"]
[TimeControl "90min + 30sec/move"]
[WhiteElo "1806"]
[BlackElo "1811"]

1. e4 {[%clk 01:30:56]} {[%emt 00:00:04]} c6 {[%clk 01:30:57]} {[%emt
00:00:03]} 2. d4 {[%clk 01:31:21]} {[%emt 00:00:05]} d5 {[%clk 01:31:25]}
{[%emt 00:00:02]} 3. exd5 {[%clk 01:31:45]} {[%emt 00:00:05]} cxd5 {[%clk
01:31:49]} {[%emt 00:00:07]} 4. c4 {[%clk 01:32:10]} {[%emt 00:00:04]} Nf6
{[%clk 01:32:16]} {[%emt 00:00:04]} 5. Nc3 {[%clk 01:32:31]} {[%emt 00:00:09]}
Nc6 {[%clk 01:32:41]} {[%emt 00:00:04]} 6. Bg5 {[%clk 01:32:43]} {[%emt
00:00:18]} Be6 {[%clk 01:33:03]} {[%emt 00:00:08]} 7. c5 {[%clk 01:32:09]}
{[%emt 00:01:04]} Ne4 {[%clk 01:32:38]} {[%emt 00:00:55]} 8. Nf3 {[%clk
01:29:58]} {[%emt 00:02:42]} Bg4 {[%clk 01:28:14]} {[%emt 00:04:54]} 9. Be3
{[%clk 01:27:16]} {[%emt 00:03:12]} e6 {[%clk 01:15:54]} {[%emt 00:12:50]} 10.
Be2 {[%clk 01:26:33]} {[%emt 00:01:13]} Be7 {[%clk 01:12:59]} {[%emt 00:03:24]}
11. Ne5 {[%clk 01:22:28]} {[%emt 00:04:35]} Nxc3 {[%clk 01:10:05]} {[%emt
00:03:24]} 12. Nxc6 {[%clk 01:19:50]} {[%emt 00:03:09]} Nxd1 {[%clk 01:09:37]}
{[%emt 00:00:57]} 13. Nxd8 {[%clk 01:20:02]} {[%emt 00:00:19]} Bxe2 {[%clk
01:09:21]} {[%emt 00:00:45]} 14. Nxb7 {[%clk 01:15:13]} {[%emt 00:05:20]} Nxe3
{[%emt 00:00:49]} 15. Kxe2 {[%clk 01:15:00]} Nf5 {[%clk 01:09:22]} {[%emt
00:00:51]} 16. Kd3 {[%clk 01:14:41]} {[%emt 00:00:50]} Kd7 {[%clk 01:08:17]}
{[%emt 00:01:35]} 17. Rac1 {[%clk 01:13:18]} {[%emt 00:01:53]} Rhc8 {[%clk
01:06:45]} {[%emt 00:02:02]} 18. Na5 {[%clk 01:12:17]} {[%emt 00:01:32]} Kc7
{[%clk 01:03:18]} {[%emt 00:03:55]} 19. g4 {[%clk 01:11:45]} {[%emt 00:01:02]}
Nh6 {[%clk 01:03:02]} {[%emt 00:00:47]} 20. h3 {[%clk 01:11:04]} {[%emt
00:01:11]} Rab8 {[%clk 00:59:20]} {[%emt 00:04:12]} 21. Nb3 {[%clk 01:08:22]}
{[%emt 00:03:13]} Bg5 {[%clk 00:57:19]} {[%emt 00:02:31]} 22. f4 {[%clk
01:08:08]} {[%emt 00:00:44]} Bxf4 {[%clk 00:55:27]} {[%emt 00:02:22]} 23. Rcf1
{[%clk 01:08:31]} {[%emt 00:00:07]} Bg5 {[%clk 00:55:38]} {[%emt 00:00:19]} 24.
h4 {[%clk 01:08:40]} {[%emt 00:00:22]} Be7 {[%clk 00:56:02]} {[%emt 00:00:06]}
25. g5 {[%clk 01:08:08]} {[%emt 00:01:02]} Nf5 {[%clk 00:56:21]} {[%emt
00:00:11]} 26. g6 {[%clk 01:07:14]} {[%emt 00:01:24]} hxg6 {[%clk 00:56:25]}
{[%emt 00:00:26]} 27. h5 {[%clk 01:07:20]} {[%emt 00:00:24]} g5 {[%clk
00:56:39]} {[%emt 00:00:16]} 28. h6 {[%clk 01:07:02]} {[%emt 00:00:49]} gxh6
{[%clk 00:56:49]} {[%emt 00:00:19]} 29. Rxf5 {[%clk 01:07:07]} {[%emt
00:00:25]} exf5 {[%clk 00:57:08]} {[%emt 00:00:11]} 30. Rxh6 {[%clk 01:07:32]}
{[%emt 00:00:06]} Rh8 {[%clk 00:57:04]} {[%emt 00:00:34]} 31. Ra6 {[%clk
01:07:00]} {[%emt 00:01:03]} Kb7 {[%clk 00:56:37]} {[%emt 00:00:56]} 32. Ra4
{[%clk 01:06:44]} {[%emt 00:00:46]} g4 {[%clk 00:56:40]} {[%emt 00:00:26]} 33.
Na5+ {[%clk 01:06:36]} {[%emt 00:00:39]} Kc7 {[%clk 00:57:02]} {[%emt
00:00:08]} 34. b4 {[%clk 01:06:19]} {[%emt 00:00:47]} g3 {[%clk 00:57:17]}
{[%emt 00:00:14]} 0-1